[Event "Early-Titled-Tuesday-Blitz-May-14-2024"]
[Site "Chess.com"]
[Date "2024.05.14"]
[Round "5"]
[White "Saxar85"]
[Black "Iball95"]
[Result "0-1"]
[WhiteElo "2781"]
[BlackElo "2929"]
[TimeControl "180+1"]
[EndTime "8:58:06 PDT"]
[Termination "Iball95 won on time"]

1. e4 {[%clk 0:02:28.1]} 1... c5 {[%clk 0:02:59.6]} 2. Nf3 {[%clk 0:02:26.1]}
2... e6 {[%clk 0:03:00.3]} 3. Nc3 {[%clk 0:02:24.7]} 3... Nc6 {[%clk 0:02:59.3]}
4. Bb5 {[%clk 0:02:23.9]} 4... Nge7 {[%clk 0:02:59.3]} 5. O-O {[%clk 0:02:23.4]}
5... a6 {[%clk 0:02:59.5]} 6. Bxc6 {[%clk 0:02:22.9]} 6... Nxc6 {[%clk
0:03:00.4]} 7. d4 {[%clk 0:02:22.2]} 7... cxd4 {[%clk 0:03:01.3]} 8. Nxd4 {[%clk
0:02:22]} 8... Nxd4 {[%clk 0:03:01]} 9. Qxd4 {[%clk 0:02:21.3]} 9... b5 {[%clk
0:03:01.7]} 10. Bf4 {[%clk 0:02:17.8]} 10... Bb7 {[%clk 0:03:01.3]} 11. Rad1
{[%clk 0:02:16.7]} 11... Rc8 {[%clk 0:03:01.4]} 12. Rfe1 {[%clk 0:02:04.1]}
12... f6 {[%clk 0:02:59.2]} 13. Bd6 {[%clk 0:01:42.3]} 13... Bxd6 {[%clk
0:02:58]} 14. Qxd6 {[%clk 0:01:42.3]} 14... Qc7 {[%clk 0:02:58.6]} 15. a3 {[%clk
0:01:24.3]} 15... Qxd6 {[%clk 0:02:47.7]} 16. Rxd6 {[%clk 0:01:23.7]} 16... Ke7
{[%clk 0:02:45.9]} 17. Red1 {[%clk 0:01:23.3]} 17... Rhd8 {[%clk 0:02:42.9]} 18.
f3 {[%clk 0:01:21.8]} 18... Rc6 {[%clk 0:02:27.9]} 19. Rxc6 {[%clk 0:01:20.4]}
19... Bxc6 {[%clk 0:02:28.8]} 20. Kf2 {[%clk 0:01:20.2]} 20... Rc8 {[%clk
0:02:22.9]} 21. Ne2 {[%clk 0:01:18.8]} 21... d5 {[%clk 0:02:19.3]} 22. exd5
{[%clk 0:01:10]} 22... Bxd5 {[%clk 0:02:20.2]} 23. c3 {[%clk 0:01:09.9]} 23...
g5 {[%clk 0:02:12.5]} 24. h4 {[%clk 0:01:06.3]} 24... h6 {[%clk 0:01:39.2]} 25.
Rh1 {[%clk 0:01:05.2]} 25... a5 {[%clk 0:01:29.2]} 26. Nd4 {[%clk 0:01:04.2]}
26... b4 {[%clk 0:01:18.8]} 27. hxg5 {[%clk 0:00:57.4]} 27... hxg5 {[%clk
0:01:18.2]} 28. axb4 {[%clk 0:00:56.7]} 28... axb4 {[%clk 0:01:17.6]} 29. Rc1
{[%clk 0:00:47.8]} 29... bxc3 {[%clk 0:01:09]} 30. bxc3 {[%clk 0:00:43.9]} 30...
Kd6 {[%clk 0:01:03.7]} 31. Ke3 {[%clk 0:00:42.4]} 31... Kc5 {[%clk 0:00:42.1]}
32. g3 {[%clk 0:00:38.5]} 32... e5 {[%clk 0:00:38.2]} 33. Nf5 {[%clk 0:00:37.2]}
33... Ra8 {[%clk 0:00:33.3]} 34. g4 {[%clk 0:00:32.5]} 34... Ra2 {[%clk
0:00:32.4]} 35. Ng3 {[%clk 0:00:32.4]} 35... Ra4 {[%clk 0:00:29]} 36. c4 {[%clk
0:00:28]} 36... Ra3+ {[%clk 0:00:23]} 37. Kd2 {[%clk 0:00:19.9]} 37... Bxf3
{[%clk 0:00:23.5]} 38. Rf1 {[%clk 0:00:19.2]} 38... e4 {[%clk 0:00:23]} 39. Nh5
{[%clk 0:00:17.2]} 39... Kd4 {[%clk 0:00:20.5]} 40. Nxf6 {[%clk 0:00:15.5]}
40... Ra2+ {[%clk 0:00:20.8]} 41. Kc1 {[%clk 0:00:13.8]} 41... Kxc4 {[%clk
0:00:18.5]} 42. Kb1 {[%clk 0:00:11.8]} 42... Rg2 {[%clk 0:00:17.9]} 43. Re1
{[%clk 0:00:10.5]} 43... Kd3 {[%clk 0:00:16.8]} 44. Rc1 {[%clk 0:00:08.6]} 44...
e3 {[%clk 0:00:14.9]} 45. Nd7 {[%clk 0:00:03.4]} 45... Be4 {[%clk 0:00:14.8]}
46. Ne5+ {[%clk 0:00:02.1]} 46... Kd4+ {[%clk 0:00:14.5]} 0-1

[Event "Early-Titled-Tuesday-Blitz-May-14-2024"]
[Site "Chess.com"]
[Date "2024.05.14"]
[Round "5"]
[White "Zhigalko_Sergei"]
[Black "Djager97"]
[Result "1/2-1/2"]
[WhiteElo "2840"]
[BlackElo "2545"]
[TimeControl "180+1"]
[EndTime "8:58:09 PDT"]
[Termination "Game drawn by repetition"]

1. e4 {[%clk 0:03:00.9]} 1... e5 {[%clk 0:02:55.2]} 2. Nf3 {[%clk 0:03:00.1]}
2... Nc6 {[%clk 0:02:55.7]} 3. Bc4 {[%clk 0:03:00.1]} 3... Bc5 {[%clk
0:02:56.2]} 4. b4 {[%clk 0:03:00.3]} 4... Bxb4 {[%clk 0:02:56.9]} 5. c3 {[%clk
0:03:00.7]} 5... Be7 {[%clk 0:02:55.9]} 6. d4 {[%clk 0:03:00.9]} 6... Na5 {[%clk
0:02:56.6]} 7. Bd3 {[%clk 0:03:01.4]} 7... d6 {[%clk 0:02:54.9]} 8. dxe5 {[%clk
0:03:02.1]} 8... dxe5 {[%clk 0:02:55]} 9. Nxe5 {[%clk 0:03:03]} 9... Nf6 {[%clk
0:02:50.9]} 10. O-O {[%clk 0:03:02.8]} 10... O-O {[%clk 0:02:44.4]} 11. Qc2
{[%clk 0:03:02.6]} 11... Be6 {[%clk 0:02:37.3]} 12. Nd2 {[%clk 0:03:00.8]} 12...
Nd7 {[%clk 0:02:30.6]} 13. Nef3 {[%clk 0:02:37.8]} 13... Nc5 {[%clk 0:02:29.5]}
14. Be2 {[%clk 0:02:37.3]} 14... f6 {[%clk 0:02:01.7]} 15. Nd4 {[%clk 0:02:36]}
15... Bf7 {[%clk 0:01:47.2]} 16. N2b3 {[%clk 0:02:32.6]} 16... Naxb3 {[%clk
0:01:44.9]} 17. axb3 {[%clk 0:02:31.6]} 17... Ne6 {[%clk 0:01:36.2]} 18. Nf5
{[%clk 0:02:31.5]} 18... Bc5 {[%clk 0:01:36.4]} 19. Rd1 {[%clk 0:02:23.6]} 19...
Qe8 {[%clk 0:01:36.2]} 20. b4 {[%clk 0:02:11.5]} 20... Bb6 {[%clk 0:01:33.9]}
21. h4 {[%clk 0:01:52]} 21... Rd8 {[%clk 0:01:29]} 22. Rxd8 {[%clk 0:01:42.5]}
22... Qxd8 {[%clk 0:01:29.9]} 23. Be3 {[%clk 0:01:42.9]} 23... Bxe3 {[%clk
0:01:23.3]} 24. Nxe3 {[%clk 0:01:43.8]} 24... a6 {[%clk 0:01:23.9]} 25. Rd1
{[%clk 0:01:33.3]} 25... Qb8 {[%clk 0:01:05.7]} 26. Bc4 {[%clk 0:01:22.6]} 26...
Rd8 {[%clk 0:01:00.5]} 27. Re1 {[%clk 0:01:22.1]} 27... c6 {[%clk 0:00:56.9]}
28. Qa2 {[%clk 0:01:07.4]} 28... Qe5 {[%clk 0:00:53.7]} 29. Kf1 {[%clk
0:00:31.6]} 29... Re8 {[%clk 0:00:25.5]} 30. Qc2 {[%clk 0:00:28.1]} 30... Qh2
{[%clk 0:00:25.3]} 31. g3 {[%clk 0:00:23]} 31... Bh5 {[%clk 0:00:25.1]} 32. f4
{[%clk 0:00:15.6]} 32... Qh1+ {[%clk 0:00:17.8]} 33. Kf2 {[%clk 0:00:14.4]}
33... Qf3+ {[%clk 0:00:18.1]} 34. Kg1 {[%clk 0:00:13.5]} 34... Qxg3+ {[%clk
0:00:18.3]} 35. Ng2 {[%clk 0:00:14.1]} 35... Kh8 {[%clk 0:00:14.2]} 36. Qd2
{[%clk 0:00:06.1]} 36... Bf3 {[%clk 0:00:11.5]} 37. Re3 {[%clk 0:00:04.3]} 37...
Nxf4 {[%clk 0:00:09.8]} 38. Rxf3 {[%clk 0:00:02.5]} 38... Qxf3 {[%clk
0:00:10.1]} 39. Nxf4 {[%clk 0:00:02.8]} 39... h6 {[%clk 0:00:05.6]} 40. Ng6+
{[%clk 0:00:01.8]} 40... Kh7 {[%clk 0:00:05.5]} 41. Bf7 {[%clk 0:00:02.7]} 41...
Rxe4 {[%clk 0:00:04.7]} 42. Nf8+ {[%clk 0:00:03.2]} 42... Kh8 {[%clk 0:00:04.5]}
43. Ng6+ {[%clk 0:00:03.8]} 43... Kh7 {[%clk 0:00:05.1]} 44. Nf8+ {[%clk
0:00:02.5]} 44... Kh8 {[%clk 0:00:05.5]} 45. Ng6+ {[%clk 0:00:02.5]} 45... Kh7
{[%clk 0:00:06]} 1/2-1/2

[Event "Early-Titled-Tuesday-Blitz-May-14-2024"]
[Site "Chess.com"]
[Date "2024.05.14"]
[Round "5"]
[White "DerKnipser"]
[Black "DonJuanEGenaro"]
[Result "1-0"]
[WhiteElo "2364"]
[BlackElo "2002"]
[TimeControl "180+1"]
[EndTime "8:58:09 PDT"]
[Termination "DerKnipser won on time"]

1. e4 {[%clk 0:02:59.9]} 1... e5 {[%clk 0:02:59.6]} 2. Nc3 {[%clk 0:03:00.2]}
2... c6 {[%clk 0:02:57.8]} 3. f4 {[%clk 0:02:58.5]} 3... exf4 {[%clk 0:02:57]}
4. Nf3 {[%clk 0:02:58.3]} 4... g5 {[%clk 0:02:57]} 5. d4 {[%clk 0:02:57.9]} 5...
Bg7 {[%clk 0:02:56.2]} 6. Bc4 {[%clk 0:02:57.6]} 6... Nh6 {[%clk 0:02:51.8]} 7.
O-O {[%clk 0:02:55.5]} 7... O-O {[%clk 0:02:46]} 8. e5 {[%clk 0:02:53.1]} 8...
d5 {[%clk 0:02:43.6]} 9. Bd3 {[%clk 0:02:51.7]} 9... Bf5 {[%clk 0:02:38]} 10. h4
{[%clk 0:02:44]} 10... g4 {[%clk 0:02:19.7]} 11. Ng5 {[%clk 0:02:42.2]} 11... f3
{[%clk 0:02:07.8]} 12. gxf3 {[%clk 0:02:40.2]} 12... g3 {[%clk 0:02:02.3]} 13.
Kg2 {[%clk 0:02:30.9]} 13... f6 {[%clk 0:02:00.7]} 14. exf6 {[%clk 0:02:30.7]}
14... Bxf6 {[%clk 0:02:00.2]} 15. Ne2 {[%clk 0:02:18.6]} 15... Qd7 {[%clk
0:01:36.7]} 16. Nxg3 {[%clk 0:02:15.5]} 16... Bxg5 {[%clk 0:01:32.7]} 17. Nxf5
{[%clk 0:02:02.3]} 17... Nxf5 {[%clk 0:01:28.6]} 18. Bxg5 {[%clk 0:02:01.1]}
18... Nxd4 {[%clk 0:01:14.9]} 19. Bxh7+ {[%clk 0:01:51.8]} 19... Qxh7 {[%clk
0:01:11.9]} 20. Qxd4 {[%clk 0:01:52.1]} 20... Qxc2+ {[%clk 0:01:11.1]} 21. Rf2
{[%clk 0:01:52.8]} 21... Qf5 {[%clk 0:01:09.7]} 22. Re1 {[%clk 0:01:47.4]} 22...
Nd7 {[%clk 0:01:07.3]} 23. Re7 {[%clk 0:01:47.2]} 23... Rf7 {[%clk 0:01:06.8]}
24. Rxf7 {[%clk 0:01:31.3]} 24... Kxf7 {[%clk 0:01:02.8]} 25. Re2 {[%clk
0:01:29.9]} 25... Re8 {[%clk 0:00:49]} 26. Rxe8 {[%clk 0:01:28]} 26... Kxe8
{[%clk 0:00:48.8]} 27. Qg7 {[%clk 0:01:20.2]} 27... Qf7 {[%clk 0:00:42.2]} 28.
Qd4 {[%clk 0:01:13.4]} 28... c5 {[%clk 0:00:37.8]} 29. Qe3+ {[%clk 0:01:10.1]}
29... Kf8 {[%clk 0:00:34.5]} 30. Qb3 {[%clk 0:00:52.9]} 30... b6 {[%clk
0:00:29.3]} 31. Qa4 {[%clk 0:00:53.1]} 31... Ne5 {[%clk 0:00:24.3]} 32. Qb3
{[%clk 0:00:49.2]} 32... c4 {[%clk 0:00:17.8]} 33. Qe3 {[%clk 0:00:39.4]} 33...
Qf5 {[%clk 0:00:16.9]} 34. h5 {[%clk 0:00:35.5]} 34... Kg7 {[%clk 0:00:15.9]}
35. h6+ {[%clk 0:00:35.1]} 35... Kg6 {[%clk 0:00:15.1]} 36. Bf4 {[%clk
0:00:34.4]} 36... Nf7 {[%clk 0:00:14.1]} 37. Kg3 {[%clk 0:00:31.1]} 37... Nxh6
{[%clk 0:00:13.3]} 38. Bxh6 {[%clk 0:00:30.9]} 38... Qd3 {[%clk 0:00:09.5]} 39.
Qe6+ {[%clk 0:00:29.8]} 39... Kh7 {[%clk 0:00:06.7]} 40. Bg5 {[%clk 0:00:27.3]}
40... Qg6 {[%clk 0:00:05.9]} 41. Qe7+ {[%clk 0:00:27.8]} 41... Qg7 {[%clk
0:00:05.5]} 42. Qd8 {[%clk 0:00:26.1]} 42... d4 {[%clk 0:00:02.9]} 43. Kh4
{[%clk 0:00:24.4]} 43... d3 {[%clk 0:00:02.4]} 44. f4 {[%clk 0:00:23.7]} 44...
Kg6 {[%clk 0:00:00.7]} 45. Qd6+ {[%clk 0:00:22.9]} 45... Kf5 {[%clk 0:00:00.5]}
46. Qd5+ {[%clk 0:00:22.5]} 1-0

[Event "Early-Titled-Tuesday-Blitz-May-14-2024"]
[Site "Chess.com"]
[Date "2024.05.14"]
[Round "5"]
[White "bascheyaro"]
[Black "lefonghua"]
[Result "1-0"]
[WhiteElo "2817"]
[BlackElo "2609"]
[TimeControl "180+1"]
[EndTime "8:58:10 PDT"]
[Termination "bascheyaro won by resignation"]

1. d4 {[%clk 0:03:00.9]} 1... Nf6 {[%clk 0:02:59.9]} 2. Nf3 {[%clk 0:03:00.6]}
2... g6 {[%clk 0:02:59.8]} 3. c4 {[%clk 0:03:00.6]} 3... Bg7 {[%clk 0:02:59.8]}
4. Bf4 {[%clk 0:03:00.8]} 4... O-O {[%clk 0:02:59.6]} 5. e3 {[%clk 0:03:01.3]}
5... c5 {[%clk 0:02:59.4]} 6. Nc3 {[%clk 0:03:01.1]} 6... cxd4 {[%clk
0:02:59.5]} 7. Nxd4 {[%clk 0:03:00.9]} 7... Nc6 {[%clk 0:02:58.8]} 8. Be2 {[%clk
0:03:00.1]} 8... d6 {[%clk 0:02:56.3]} 9. Bg3 {[%clk 0:02:59.6]} 9... Bd7 {[%clk
0:02:52.5]} 10. O-O {[%clk 0:02:59.1]} 10... Rc8 {[%clk 0:02:52.6]} 11. Rc1
{[%clk 0:02:58.8]} 11... Nxd4 {[%clk 0:02:48.4]} 12. exd4 {[%clk 0:02:58.2]}
12... Bf5 {[%clk 0:02:39.5]} 13. b3 {[%clk 0:02:52.4]} 13... Ne4 {[%clk
0:02:36.8]} 14. Nxe4 {[%clk 0:02:51.6]} 14... Bxe4 {[%clk 0:02:37.7]} 15. Qd2
{[%clk 0:02:50.5]} 15... Qb6 {[%clk 0:02:27.8]} 16. Rfd1 {[%clk 0:02:50]} 16...
d5 {[%clk 0:02:14]} 17. c5 {[%clk 0:02:48.6]} 17... Qc6 {[%clk 0:02:09.7]} 18.
b4 {[%clk 0:02:48.4]} 18... a6 {[%clk 0:02:09.4]} 19. Ra1 {[%clk 0:02:06.7]}
19... Qa4 {[%clk 0:02:04.1]} 20. Qc3 {[%clk 0:02:06.6]} 20... Qc2 {[%clk
0:02:00.2]} 21. Qxc2 {[%clk 0:02:00.5]} 21... Bxc2 {[%clk 0:02:01.1]} 22. Rd2
{[%clk 0:02:01.1]} 22... Ba4 {[%clk 0:01:59.9]} 23. Bf4 {[%clk 0:01:56.6]} 23...
Rfe8 {[%clk 0:01:45.7]} 24. Rb1 {[%clk 0:01:50.1]} 24... f6 {[%clk 0:01:24.4]}
25. Be3 {[%clk 0:01:45.1]} 25... Kf7 {[%clk 0:01:22]} 26. b5 {[%clk 0:01:42.9]}
26... axb5 {[%clk 0:01:14.4]} 27. Bxb5 {[%clk 0:01:43.5]} 27... Bxb5 {[%clk
0:01:15]} 28. Rxb5 {[%clk 0:01:44.1]} 28... Rc7 {[%clk 0:01:14.7]} 29. Rdb2
{[%clk 0:01:44.3]} 29... Ra8 {[%clk 0:01:14.5]} 30. f4 {[%clk 0:01:39.3]} 30...
f5 {[%clk 0:01:09.8]} 31. Kf2 {[%clk 0:01:30.6]} 31... Ra4 {[%clk 0:01:05.8]}
32. R5b4 {[%clk 0:01:29.9]} 32... Ra3 {[%clk 0:01:05.1]} 33. Ke2 {[%clk
0:01:27.3]} 33... Ke8 {[%clk 0:00:58.2]} 34. h4 {[%clk 0:01:09.6]} 34... Kd7
{[%clk 0:00:54.6]} 35. Rxb7 {[%clk 0:01:08.5]} 35... Bf6 {[%clk 0:00:39]} 36. g3
{[%clk 0:01:04.3]} 36... Ra4 {[%clk 0:00:33.3]} 37. R7b4 {[%clk 0:01:01.4]}
37... Rxb4 {[%clk 0:00:31.3]} 38. Rxb4 {[%clk 0:01:01.2]} 38... Ra7 {[%clk
0:00:32]} 39. a4 {[%clk 0:01:01.5]} 39... Kc7 {[%clk 0:00:29.4]} 40. Kd3 {[%clk
0:01:01.8]} 40... e6 {[%clk 0:00:28.7]} 41. Kc3 {[%clk 0:01:02.2]} 41... Bd8
{[%clk 0:00:28.7]} 42. Kb3 {[%clk 0:01:02.7]} 42... Kc6 {[%clk 0:00:27.7]} 43.
Rb8 {[%clk 0:00:55.2]} 43... Ba5 {[%clk 0:00:24.1]} 44. Rc8+ {[%clk 0:00:46.8]}
44... Kd7 {[%clk 0:00:20.6]} 45. Rh8 {[%clk 0:00:46]} 45... Kc6 {[%clk 0:00:21]}
46. Bf2 {[%clk 0:00:41.9]} 46... Rb7+ {[%clk 0:00:21.4]} 47. Kc2 {[%clk
0:00:42.2]} 47... Rb4 {[%clk 0:00:19.6]} 48. Rxh7 {[%clk 0:00:42.4]} 48... Rxa4
{[%clk 0:00:17.2]} 49. Kb3 {[%clk 0:00:39.2]} 49... Rb4+ {[%clk 0:00:16.9]} 50.
Ka3 {[%clk 0:00:39.6]} 50... Rc4 {[%clk 0:00:17.2]} 51. Re7 {[%clk 0:00:34.4]}
51... Rc2 {[%clk 0:00:16.4]} 52. Rxe6+ {[%clk 0:00:33.9]} 52... Kd7 {[%clk
0:00:17]} 53. Rd6+ {[%clk 0:00:32]} 53... Kc7 {[%clk 0:00:16.7]} 54. Bg1 {[%clk
0:00:31.6]} 54... Rc1 {[%clk 0:00:16.1]} 55. Bf2 {[%clk 0:00:29.5]} 55... Rc2
{[%clk 0:00:16.5]} 56. Ka4 {[%clk 0:00:30.1]} 56... Rxf2 {[%clk 0:00:14.3]} 57.
Kxa5 {[%clk 0:00:30.1]} 57... Ra2+ {[%clk 0:00:14.3]} 58. Kb4 {[%clk 0:00:29.9]}
58... Rg2 {[%clk 0:00:13.7]} 59. Rxg6 {[%clk 0:00:29.9]} 59... Rd2 {[%clk
0:00:13.7]} 60. Kc3 {[%clk 0:00:30.3]} 60... Re2 {[%clk 0:00:14.2]} 61. h5
{[%clk 0:00:30.4]} 1-0

[Event "Early-Titled-Tuesday-Blitz-May-14-2024"]
[Site "Chess.com"]
[Date "2024.05.14"]
[Round "5"]
[White "Shushik"]
[Black "Arteler"]
[Result "1-0"]
[WhiteElo "2554"]
[BlackElo "2240"]
[TimeControl "180+1"]
[EndTime "8:58:10 PDT"]
[Termination "Shushik won by resignation"]

1. e4 {[%clk 0:03:00.9]} 1... e5 {[%clk 0:02:59.4]} 2. Nf3 {[%clk 0:03:01]} 2...
d6 {[%clk 0:03:00.1]} 3. d4 {[%clk 0:03:00.7]} 3... exd4 {[%clk 0:03:01]} 4.
Nxd4 {[%clk 0:03:01.3]} 4... Nf6 {[%clk 0:03:01.6]} 5. Nc3 {[%clk 0:03:01.5]}
5... Be7 {[%clk 0:03:02.2]} 6. Bc4 {[%clk 0:02:59.6]} 6... O-O {[%clk
0:03:02.6]} 7. O-O {[%clk 0:02:58.4]} 7... Nc6 {[%clk 0:03:03.3]} 8. Re1 {[%clk
0:02:56.6]} 8... Nxd4 {[%clk 0:03:03.7]} 9. Qxd4 {[%clk 0:02:56.3]} 9... Ng4
{[%clk 0:03:04.5]} 10. Nd5 {[%clk 0:02:23.4]} 10... Bh4 {[%clk 0:03:00]} 11. g3
{[%clk 0:02:23.1]} 11... Ne5 {[%clk 0:02:58.5]} 12. Be2 {[%clk 0:02:13.3]} 12...
c6 {[%clk 0:02:48.5]} 13. Nf4 {[%clk 0:01:23.6]} 13... Bf6 {[%clk 0:02:44.2]}
14. Qd1 {[%clk 0:01:23.6]} 14... Qc7 {[%clk 0:02:29]} 15. Be3 {[%clk 0:01:11.6]}
15... Rd8 {[%clk 0:02:20.1]} 16. c4 {[%clk 0:01:00.6]} 16... b6 {[%clk
0:02:04.8]} 17. Rc1 {[%clk 0:00:59]} 17... Ba6 {[%clk 0:02:04.9]} 18. b3 {[%clk
0:00:58.5]} 18... Qe7 {[%clk 0:01:52.9]} 19. Nh5 {[%clk 0:00:52.1]} 19... Rac8
{[%clk 0:01:16.7]} 20. Nxf6+ {[%clk 0:00:51]} 20... Qxf6 {[%clk 0:01:17.6]} 21.
f4 {[%clk 0:00:45]} 21... Ng6 {[%clk 0:01:12.4]} 22. Bf3 {[%clk 0:00:43]} 22...
Bb7 {[%clk 0:01:01.2]} 23. Qd2 {[%clk 0:00:42.3]} 23... h6 {[%clk 0:00:58.7]}
24. Rcd1 {[%clk 0:00:38.7]} 24... Ne7 {[%clk 0:00:57.2]} 25. Qe2 {[%clk
0:00:32]} 25... d5 {[%clk 0:00:50.8]} 26. e5 {[%clk 0:00:27.8]} 26... Qg6 {[%clk
0:00:48.5]} 27. Bh5 {[%clk 0:00:19]} 27... Qf5 {[%clk 0:00:47.4]} 28. Bg4 {[%clk
0:00:18.5]} 28... Qg6 {[%clk 0:00:47.8]} 29. Bxc8 {[%clk 0:00:18.1]} 29... Bxc8
{[%clk 0:00:41.3]} 30. Qg2 {[%clk 0:00:17.7]} 30... Bg4 {[%clk 0:00:38.4]} 31.
Rd2 {[%clk 0:00:17.9]} 31... Nf5 {[%clk 0:00:38.7]} 32. cxd5 {[%clk 0:00:17.2]}
32... Nxe3 {[%clk 0:00:37.8]} 33. Rxe3 {[%clk 0:00:15.1]} 33... Qb1+ {[%clk
0:00:36.6]} 34. Kf2 {[%clk 0:00:15.5]} 34... cxd5 {[%clk 0:00:35.1]} 35. h3
{[%clk 0:00:15.8]} 35... d4 {[%clk 0:00:34.9]} 36. Red3 {[%clk 0:00:13.6]} 36...
Bf5 {[%clk 0:00:25.2]} 37. Rd1 {[%clk 0:00:14]} 37... Qb2+ {[%clk 0:00:25.1]}
38. R3d2 {[%clk 0:00:14]} 38... Qb1 {[%clk 0:00:25.6]} 39. Rxb1 {[%clk
0:00:13.4]} 39... Bxb1 {[%clk 0:00:26.4]} 40. Qc6 {[%clk 0:00:13]} 40... d3
{[%clk 0:00:26.6]} 41. Qc7 {[%clk 0:00:13.2]} 41... Re8 {[%clk 0:00:22.6]} 42.
Qxa7 {[%clk 0:00:13.3]} 42... Re6 {[%clk 0:00:22.2]} 43. Qa8+ {[%clk 0:00:12.4]}
43... Kh7 {[%clk 0:00:22.8]} 44. Qe4+ {[%clk 0:00:12.3]} 44... Kg8 {[%clk
0:00:22.2]} 45. f5 {[%clk 0:00:12.8]} 45... Re8 {[%clk 0:00:21.4]} 46. e6 {[%clk
0:00:12.7]} 46... fxe6 {[%clk 0:00:21.7]} 47. fxe6 {[%clk 0:00:13.6]} 47... Rf8+
{[%clk 0:00:22.3]} 48. Ke3 {[%clk 0:00:14]} 48... Re8 {[%clk 0:00:23.2]} 49. e7
{[%clk 0:00:14.3]} 49... Kf7 {[%clk 0:00:23.4]} 50. Rf2+ {[%clk 0:00:13.5]}
50... Kg8 {[%clk 0:00:23.4]} 51. Qe6+ {[%clk 0:00:13.7]} 51... Kh7 {[%clk
0:00:23.4]} 52. Rf8 {[%clk 0:00:13.6]} 52... d2 {[%clk 0:00:21.4]} 53. Kxd2
{[%clk 0:00:13]} 53... Bg6 {[%clk 0:00:21.1]} 54. Rxe8 {[%clk 0:00:12.6]} 54...
Bxe8 {[%clk 0:00:22]} 55. Qc8 {[%clk 0:00:12.8]} 1-0

[Event "Early-Titled-Tuesday-Blitz-May-14-2024"]
[Site "Chess.com"]
[Date "2024.05.14"]
[Round "5"]
[White "TheAlienParty"]
[Black "Gumugama"]
[Result "1/2-1/2"]
[WhiteElo "2422"]
[BlackElo "2278"]
[TimeControl "180+1"]
[EndTime "8:58:12 PDT"]
[Termination "Game drawn - insufficient material"]

1. c4 {[%clk 0:02:59]} 1... e5 {[%clk 0:02:58.9]} 2. Nc3 {[%clk 0:02:58.6]} 2...
f5 {[%clk 0:02:58.1]} 3. Nf3 {[%clk 0:02:57.7]} 3... Nc6 {[%clk 0:02:58.1]} 4.
g3 {[%clk 0:02:57.7]} 4... Nf6 {[%clk 0:02:57.6]} 5. d4 {[%clk 0:02:57.8]} 5...
e4 {[%clk 0:02:54.8]} 6. Nh4 {[%clk 0:02:57.7]} 6... d6 {[%clk 0:02:48.1]} 7.
Bg5 {[%clk 0:02:56.6]} 7... h6 {[%clk 0:02:41.9]} 8. Bxf6 {[%clk 0:02:55.9]}
8... Qxf6 {[%clk 0:02:42.8]} 9. e3 {[%clk 0:02:49.3]} 9... g5 {[%clk 0:02:31.6]}
10. Ng2 {[%clk 0:02:34.5]} 10... Ne7 {[%clk 0:02:16.9]} 11. h4 {[%clk
0:02:32.7]} 11... Be6 {[%clk 0:02:06.2]} 12. d5 {[%clk 0:02:28.8]} 12... Bf7
{[%clk 0:01:39.2]} 13. Qb3 {[%clk 0:02:28.1]} 13... O-O-O {[%clk 0:01:34.9]} 14.
hxg5 {[%clk 0:02:26.6]} 14... hxg5 {[%clk 0:01:34.2]} 15. Rxh8 {[%clk
0:02:26.7]} 15... Qxh8 {[%clk 0:01:35]} 16. Qa4 {[%clk 0:02:23.8]} 16... Kb8
{[%clk 0:01:26.3]} 17. Nb5 {[%clk 0:02:21.8]} 17... a6 {[%clk 0:01:26]} 18. Nd4
{[%clk 0:02:20.9]} 18... c5 {[%clk 0:01:16.5]} 19. dxc6 {[%clk 0:02:16.3]} 19...
Nxc6 {[%clk 0:01:11.4]} 20. O-O-O {[%clk 0:01:57.3]} 20... Nxd4 {[%clk
0:00:56.5]} 21. Rxd4 {[%clk 0:01:56.6]} 21... Bg7 {[%clk 0:00:55.2]} 22. Rd2
{[%clk 0:01:54]} 22... Rc8 {[%clk 0:00:52.1]} 23. Kb1 {[%clk 0:01:51.9]} 23...
Qh1 {[%clk 0:00:34.5]} 24. Qd1 {[%clk 0:01:49.7]} 24... Bxc4 {[%clk 0:00:27.1]}
25. Bxc4 {[%clk 0:01:48]} 25... Qxd1+ {[%clk 0:00:28]} 26. Rxd1 {[%clk
0:01:47.3]} 26... Rxc4 {[%clk 0:00:28.7]} 27. Rxd6 {[%clk 0:01:47.4]} 27... Rc6
{[%clk 0:00:19.7]} 28. Rd7 {[%clk 0:01:46.9]} 28... Rc7 {[%clk 0:00:19]} 29.
Rd8+ {[%clk 0:01:46]} 29... Ka7 {[%clk 0:00:18.7]} 30. Rd5 {[%clk 0:01:45.5]}
30... Rf7 {[%clk 0:00:17.5]} 31. Ne1 {[%clk 0:01:44.6]} 31... Kb6 {[%clk
0:00:16.5]} 32. Nc2 {[%clk 0:01:44.1]} 32... Kc6 {[%clk 0:00:16.8]} 33. Nb4+
{[%clk 0:01:42.6]} 33... Kc7 {[%clk 0:00:16.1]} 34. a3 {[%clk 0:01:39]} 34...
Rd7 {[%clk 0:00:15.8]} 35. Rxf5 {[%clk 0:01:37.9]} 35... a5 {[%clk 0:00:09.2]}
36. Nd5+ {[%clk 0:01:37.4]} 36... Kd6 {[%clk 0:00:08.8]} 37. Rxg5 {[%clk
0:01:34.6]} 37... Kc6 {[%clk 0:00:08]} 38. Nc3 {[%clk 0:01:21.9]} 38... Bxc3
{[%clk 0:00:06.9]} 39. bxc3 {[%clk 0:01:21.9]} 39... b5 {[%clk 0:00:07.5]} 40.
Kc2 {[%clk 0:01:20.5]} 40... Rf7 {[%clk 0:00:06.7]} 41. Rg6+ {[%clk 0:01:11.4]}
41... Kc5 {[%clk 0:00:06.8]} 42. Rg5+ {[%clk 0:01:05.8]} 42... Kc4 {[%clk
0:00:06.5]} 43. Re5 {[%clk 0:01:03.6]} 43... Rxf2+ {[%clk 0:00:07.4]} 44. Kd1
{[%clk 0:01:03.5]} 44... Kd3 {[%clk 0:00:05.5]} 45. Rd5+ {[%clk 0:01:03.4]}
45... Kxe3 {[%clk 0:00:05.7]} 46. Rxb5 {[%clk 0:01:03.3]} 46... Kd3 {[%clk
0:00:05.2]} 47. Rd5+ {[%clk 0:01:02.1]} 47... Kxc3 {[%clk 0:00:05.9]} 48. Rxa5
{[%clk 0:01:02]} 48... e3 {[%clk 0:00:05.9]} 49. Ra8 {[%clk 0:00:56.7]} 49...
Kd3 {[%clk 0:00:06.1]} 50. Rd8+ {[%clk 0:00:56.3]} 50... Ke4 {[%clk 0:00:06.4]}
51. g4 {[%clk 0:00:54]} 51... Ra2 {[%clk 0:00:06.1]} 52. Ra8 {[%clk 0:00:52.7]}
52... Kd3 {[%clk 0:00:04.7]} 53. Rd8+ {[%clk 0:00:52.3]} 53... Ke4 {[%clk
0:00:05]} 54. Ra8 {[%clk 0:00:48.4]} 54... Kf4 {[%clk 0:00:04.6]} 55. Rf8+
{[%clk 0:00:43.2]} 55... Kxg4 {[%clk 0:00:04.4]} 56. a4 {[%clk 0:00:42.2]} 56...
Rxa4 {[%clk 0:00:04.2]} 57. Ke2 {[%clk 0:00:42]} 57... Re4 {[%clk 0:00:03.7]}
58. Rf3 {[%clk 0:00:39.5]} 58... Re5 {[%clk 0:00:03.6]} 59. Rxe3 {[%clk
0:00:39.4]} 59... Rxe3+ {[%clk 0:00:03.8]} 60. Kxe3 {[%clk 0:00:39.6]} 1/2-1/2